bitfinex/quotes_ETHUSD_20241023
["timestamp","ask_amount","ask_price","bid_price","bid_amount"]
[1729654901039,3.45013,2608.6,2608.3,1.40719844]
[1729654901744,5.14454737,2608.7,2608.3,1.40719844]
[1729654902350,8.59463737,2608.7,2608.3,1.40719844]
[1729654902859,5.14454737,2608.7,2608.3,1.40719844]
[1729654903539,8.59461737,2608.7,2608.3,1.40719844]
[1729654904317,5.14454737,2608.7,2608.4,0.80394999]
[1729654904553,8.59462737,2608.7,2608.3,1.40719844]
[1729654905487,8.59462737,2608.7,2608.4,0.80394999]
[1729654906255,5.14454737,2608.7,2608.4,0.80394999]
[1729654908352,8.59462737,2608.7,2608.4,0.80394999]
[1729654908530,5.14454737,2608.7,2608.4,0.80394999]
[1729654908959,8.59462737,2608.7,2608.4,0.80394999]
[1729654909565,5.14454737,2608.7,2608.4,0.80394999]
[1729654909864,3.45012,2608.6,2608.4,0.80394999]
[1729654913872,3.45012,2608.6,2608.4,0.80538937]
[1729654915164,3.45012,2608.6,2608.5,0.80538937]
[1729654916788,3.45012,2608.6,2608.5,1.09309055]
[1729654918696,5.14455737,2608.7,2608.5,1.09309055]
[1729654918993,5.14455737,2608.7,2608.5,0.80538937]
[1729654928700,3.45012,2608.6,2608.5,0.80538937]
[1729654928863,3.45039,2608.4,2608.3,0.80538937]
[1729654929063,5.14493737,2608.4,2608.2,0.80538937]
[1729654930363,1.69454737,2608.3,2608.2,0.80538937]
[1729654931184,5.14493737,2608.4,2608.0,5.42428406]
[1729654931389,5.14493737,2608.4,2608.0,4.2162]
[1729654931698,1.69454737,2608.3,2608.0,4.2162]
[1729654931913,1.69454737,2608.3,2608.0,4.982925]
[1729654933617,1.69454737,2608.2,2608.0,1.532025]
[1729654934022,1.69454737,2608.3,2608.0,4.982905]
[1729654934737,0.01,2608.7,2608.2,1.69454737]
[1729654934895,0.01,2608.7,2608.4,3.45036]
[1729654935226,1.70454737,2608.7,2608.4,3.45036]
[1729654935583,1.70454737,2608.7,2608.5,0.80560572]
[1729654936028,1.70454737,2608.7,2608.3,0.80560572]
[1729654936029,2.46984737,2608.6,2608.3,0.80560572]
[1729654936183,1.69454737,2608.4,2608.2,0.80560572]
[1729654936386,1.70454737,2608.5,2608.2,0.80560572]
[1729654936627,0.01,2608.5,2608.2,4.25622572]
[1729654936826,1.70454737,2608.5,2608.2,4.25622572]
[1729654937025,0.01,2608.5,2608.2,4.25622572]
[1729654937392,0.01,2608.5,2608.2,0.80560572]
[1729654937601,1.70454737,2608.5,2608.2,0.80560572]
[1729654938426,5.15482737,2608.5,2608.2,0.80560572]
[1729654938625,1.70454737,2608.5,2608.2,0.80560572]
[1729654939200,0.01,2608.5,2608.2,4.87924415]
[1729654939401,0.01,2608.5,2608.3,0.7653]
[1729654939600,0.01,2608.5,2608.3,1.57090572]
[1729654943898,0.01,2608.5,2608.3,5.02141572]
[1729654945453,3.45,2608.7,2608.4,3.45039]
[1729654945454,0.01,2608.7,2608.4,3.45039]
[1729654945740,1.70454737,2608.7,2608.4,4.48838002]
[1729654945905,1.69454737,2608.6,2608.4,4.48838002]
[1729654946339,1.70454737,2608.7,2608.4,4.48838002]
[1729654946515,1.69454737,2608.6,2608.4,4.48838002]
[1729654947313,1.69454737,2608.6,2608.4,1.03799002]
[1729654948149,0.01,2608.7,2608.4,1.03799002]
[1729654948307,1.69454737,2608.6,2608.4,5.29395574]
[1729654948506,1.69454737,2608.6,2608.5,0.95097657]
[1729654948733,1.70454737,2608.7,2608.4,3.45036]
[1729654948930,1.69454737,2608.6,2608.3,5.02141572]
[1729654949130,1.69454737,2608.6,2608.4,0.80560572]
[1729654953157,1.69454737,2608.6,2608.4,4.25597572]
[1729654954613,1.69454737,2608.6,2608.4,0.80560572]
[1729654954841,1.69454737,2608.6,2608.4,4.25596572]
[1729654955044,0.01,2608.7,2608.4,5.28627799]
[1729654955347,1.70454737,2608.7,2608.4,5.28627799]
[1729654955524,1.69454737,2608.6,2608.4,1.83591799]
[1729654956350,1.69454737,2608.6,2608.4,5.28625799]
[1729654957246,1.69454737,2608.6,2608.4,1.83591799]
[1729654957408,1.69454737,2608.6,2608.4,0.80560572]
[1729654961658,1.69454737,2608.5,2608.4,0.80560572]
[1729654963867,1.69454737,2608.5,2608.3,5.02129572]
[1729654964058,1.69454737,2608.5,2608.4,0.80560572]
[1729654964461,1.69454737,2608.5,2608.3,5.02129572]
[1729654964780,1.69454737,2608.6,2608.4,4.25598572]
[1729654965075,1.69454737,2608.6,2608.4,0.80560572]
[1729654966660,1.69454737,2608.6,2608.4,4.25599572]
[1729654968875,0.01,2608.7,2608.4,0.80560572]
[1729654969173,0.01,2608.9,2608.7,3.44992]
[1729654969393,0.01,2608.9,2608.7,4.34132543]
[1729654969596,0.01,2608.9,2608.7,5.14693115]
[1729654969748,0.01,2609.1,2608.9,3.44962]
[1729654969959,4.27994,2609.5,2609.0,3.44959]
[1729654970304,1.69454737,2609.3,2609.0,3.44958]
[1729654970653,1.69454737,2609.2,2609.0,3.44958]
[1729654971057,1.69454737,2609.3,2609.0,3.44958]
[1729654972078,1.69454737,2609.4,2609.0,6.89907]
[1729654972279,1.69454737,2609.4,2609.0,7.74468757]
[1729654972603,1.69454737,2609.3,2609.0,4.29510757]
[1729654974058,1.69454737,2609.2,2609.0,4.29510757]
[1729654975209,1.69454737,2609.2,2609.0,0.84561757]
[1729654975355,1.69454737,2609.1,2608.8,3.44985]
[1729654975701,1.69454737,2608.9,2608.7,1.67430543]
[1729654976477,1.69454737,2609.0,2608.7,5.12429543]
[1729654976687,1.69454737,2608.8,2608.7,0.89140543]
[1729654977114,1.69454737,2608.8,2608.5,4.23309]
[1729654977875,1.70454737,2608.9,2608.6,3.45011]
[1729654979514,1.70454737,2608.9,2608.6,6.90022]
[1729654979686,1.70454737,2608.9,2608.6,3.45011]
[1729654980009,0.01,2608.9,2608.6,3.45011]
[1729654980186,0.01,2608.9,2608.6,4.29880111]
[1729654980386,1.70454737,2608.9,2608.6,4.29880111]
[1729654981207,0.01,2608.9,2608.6,7.74884111]
[1729654981710,1.70454737,2608.9,2608.6,4.29873111]
[1729654981882,0.01,2608.9,2608.6,4.29873111]
[1729654982386,1.70454737,2608.9,2608.6,4.29873111]
[1729654983206,0.01,2608.9,2608.7,3.44998]
[1729654983512,1.70454737,2608.9,2608.7,3.44998]
[1729654983867,0.01,2608.9,2608.7,3.44998]
[1729654984071,0.01,2608.9,2608.7,4.38349822]
[1729654987222,0.01,2608.9,2608.7,3.44998]
[1729654988711,0.01,2608.9,2608.8,3.44986]
[1729654989022,1.70454737,2609.1,2608.8,3.44986]
[1729654989380,1.69454737,2609.0,2608.8,3.44986]
[1729654989771,0.01,2608.9,2608.7,3.44997]
[1729654990012,1.70454737,2609.1,2608.8,3.44982]
[1729654990375,1.69454737,2609.0,2608.8,3.44982]
[1729654991377,1.69454737,2608.9,2608.7,3.4499]
[1729654991809,2.45444737,2609.0,2608.7,3.4499]
[1729654992019,2.45444737,2609.0,2608.8,3.4498]
[1729654992920,1.70454737,2609.1,2608.9,3.44971]
[1729654993138,0.01,2609.1,2608.9,3.44971]
[1729654993315,0.01,2609.1,2608.8,3.4498]
[1729654993996,1.70454737,2609.1,2608.8,3.4498]
[1729654994330,0.01,2609.1,2608.9,3.44965]
[1729654994536,0.01,2609.3,2609.0,6.899]
[1729654994737,1.70454737,2609.3,2609.0,3.44949]
[1729654995238,1.69454737,2609.2,2609.0,3.44949]
[1729654996707,0.01,2609.3,2609.0,3.44949]
[1729654996912,0.01,2609.3,2609.1,3.44937]
[1729654997732,1.70454737,2609.3,2609.2,3.44933]
[1729654997942,0.01,2609.3,2609.2,3.44933]
[1729654998338,0.01,2609.3,2609.1,3.44946]
[1729654998635,0.01,2609.3,2609.1,4.139355]
[1729655000998,0.01,2609.3,2609.1,3.44946]
[1729655004914,0.01,2609.3,2609.0,3.44958]
[1729655005117,1.70454737,2609.3,2608.9,3.44969]
[1729655005313,1.70454737,2609.3,2609.0,3.44955]
[1729655006397,0.01,2609.3,2609.0,6.89906]
[1729655006639,0.01,2609.3,2609.1,0.689906]
[1729655006841,0.01,2609.3,2609.0,3.44951]
[1729655013969,0.01,2609.3,2609.1,3.44943]
[1729655014763,0.01,2609.3,2609.0,3.44958]
[1729655015120,0.01,2609.3,2609.0,6.89909]
[1729655015647,0.01,2609.3,2609.0,3.44951]
[1729655015942,0.01,2609.3,2609.1,0.42530811]
[1729655018358,0.01,2609.3,2609.1,3.87475811]
[1729655022679,0.7884,2609.8,2609.5,3.44881]
[1729655022893,1.38832353,2610.0,2609.5,2.49914737]
[1729655023044,3.51436475,2610.3,2609.9,3.4484]
[1729655023045,0.7784,2610.2,2609.9,3.4484]
[1729655023458,0.7784,2610.2,2610.0,3.44826]
[1729655023951,0.7784,2610.2,2609.9,3.4484]
[1729655024293,0.7784,2610.2,2609.9,6.89673]
[1729655024457,0.7784,2610.2,2609.9,3.44833]
[1729655024854,0.7784,2610.2,2609.7,6.89718]
[1729655024855,1.69454737,2610.1,2609.7,6.89718]
[1729655025060,1.69454737,2610.1,2609.7,4.44463225]
[1729655026084,1.69454737,2610.0,2609.7,4.44463225]
[1729655027744,1.69454737,2610.0,2609.7,0.99606225]
[1729655027745,1.70454737,2610.0,2609.7,0.99606225]
[1729655027944,1.70454737,2610.0,2609.6,3.69868474]
[1729655028244,0.01,2610.0,2609.7,3.44865]
[1729655028439,0.01,2610.0,2609.7,3.44859]
[1729655030201,0.01,2610.0,2609.7,6.89719]
[1729655030351,0.01,2610.0,2609.7,3.44859]
[1729655030352,1.70454737,2610.0,2609.7,3.44859]
[1729655030555,1.70454737,2610.0,2609.7,4.24378547]
[1729655031352,0.01,2610.0,2609.7,4.24378547]
[1729655031553,1.70454737,2610.0,2609.7,4.24378547]
[1729655033259,0.01,2610.0,2609.7,4.24378547]
[1729655034459,0.01,2610.0,2609.7,7.69238547]
[1729655034805,0.01,2610.0,2609.8,0.79423002]
[1729655034961,0.01,2610.0,2609.7,3.44859]
[1729655036158,1.70454737,2610.0,2609.7,3.44859]
[1729655037096,1.70454737,2610.0,2609.6,0.24991474]
[1729655037320,2.48894737,2609.7,2609.4,3.44903]
[1729655037513,2.48894737,2609.7,2609.1,3.44937]
[1729655037514,1.69454737,2609.5,2609.1,3.44937]
[1729655037660,1.69454737,2609.3,2608.9,4.24182]
[1729655037966,0.8044,2609.4,2609.0,3.873682]
[1729655038470,1.69454737,2609.3,2609.0,3.873682]
[1729655038659,1.69454737,2609.3,2608.9,4.24182]
[1729655038860,2.49894737,2609.4,2609.0,3.44952]
[1729655039385,1.70454737,2609.4,2609.1,0.7922]
[1729655039569,0.01,2609.8,2609.5,3.44886]
[1729655040304,0.01,2609.8,2609.4,7.69016]
[1729655040462,0.8044,2609.8,2609.5,3.44892]
[1729655040808,0.8044,2609.8,2609.4,4.24117]
[1729655041362,0.8044,2609.8,2609.4,3.44897]
[1729655041693,0.8044,2609.8,2609.4,6.89797]
[1729655041879,0.8044,2609.8,2609.4,3.44897]
[1729655042076,0.8044,2609.8,2609.5,3.44893]
[1729655042793,0.01,2610.0,2609.7,0.7922]
[1729655043309,0.01,2610.0,2609.6,3.44879]
[1729655043891,0.01,2610.0,2609.7,3.44858]
[1729655044411,0.01,2610.0,2609.6,6.89745]
[1729655044613,0.01,2610.0,2609.6,3.44872]
[1729655044913,1.70454737,2610.0,2609.6,3.44872]
[1729655045472,0.7944,2609.7,2609.4,3.44898]
[1729655046217,0.7944,2609.7,2609.4,4.30825674]
[1729655047380,0.7944,2609.7,2609.4,3.44898]
[1729655048712,0.01,2609.8,2609.5,5.14338737]
[1729655048921,0.01,2609.8,2609.5,3.44884]
[1729655049777,0.01,2609.8,2609.4,5.14352737]
[1729655050418,0.01,2609.8,2609.4,3.44898]
[1729655052398,0.01,2609.8,2609.4,6.89798]
[1729655052596,0.01,2609.8,2609.4,5.14352737]
[1729655052834,0.01,2609.8,2609.5,3.44892]
[1729655057434,0.01,2609.8,2609.4,2.28925722]
[1729655058630,3.45854,2609.8,2609.4,2.28925722]
[1729655058931,0.7693,2609.7,2609.4,1.69454737]
[1729655060550,0.7693,2609.7,2609.4,5.14357737]
[1729655061045,0.7693,2609.7,2609.5,3.44891]
[1729655061344,0.01,2609.8,2609.6,1.69454737]
[1729655062201,0.01,2609.8,2609.5,3.44891]
[1729655062742,3.45801,2610.2,2609.7,5.14309737]
[1729655062940,3.45801,2610.2,2609.8,5.14307737]
[1729655063239,0.01,2610.2,2609.9,5.14287737]
[1729655063457,0.01,2610.2,2610.0,3.44821]
[1729655063821,0.01,2610.2,2609.8,8.59148737]
[1729655064052,0.01,2610.2,2609.9,1.69454737]
[1729655064223,0.01,2610.2,2609.8,6.15766761]
[1729655064429,0.01,2610.2,2609.9,3.44838]
[1729655066829,0.01,2610.2,2609.9,1.69454737]
[1729655067056,0.01,2610.2,2610.0,3.44826]
[1729655067228,0.01,2610.2,2610.0,4.40885276]
[1729655068863,0.01,2610.2,2610.0,0.96059276]
[1729655074483,0.01,2610.2,2610.0,4.40886276]
[1729655074781,0.01,2610.2,2610.0,0.96059276]
[1729655075283,3.45802,2610.2,2609.7,4.25124508]
[1729655075578,3.45802,2610.2,2609.7,5.94579245]
[1729655075955,0.01,2610.2,2609.8,3.44843]
[1729655076473,0.01,2610.2,2609.8,4.46315924]
[1729655077579,3.45802,2610.2,2609.8,4.46315924]
[1729655077986,3.45802,2610.2,2609.7,4.25127508]
[1729655078176,3.45802,2610.2,2609.7,0.80261508]
[1729655078399,3.45802,2610.2,2609.8,3.44854]
[1729655079750,3.45802,2610.2,2609.7,0.80261508]
[1729655079994,3.45802,2610.2,2609.7,4.25127508]
[1729655080352,3.45802,2610.2,2609.8,3.44852]
[1729655084357,0.01,2610.2,2609.8,3.44852]
[1729655085579,0.01,2610.2,2609.8,6.89697]
[1729655085787,0.01,2610.2,2609.8,3.44845]
[1729655086301,0.01,2610.2,2609.9,3.44838]
[1729655086810,0.01,2610.2,2609.8,5.14299737]
[1729655087165,3.45806,2610.2,2609.8,5.14299737]
[1729655087365,0.01,2610.2,2609.8,5.14299737]
[1729655087567,3.45804,2610.2,2609.8,5.14299737]
[1729655088207,0.01,2610.2,2609.9,3.44838]
[1729655088711,0.01,2610.2,2609.8,6.27812588]
[1729655089177,3.45802,2610.2,2609.8,6.27812588]
[1729655091402,0.7747,2610.1,2609.7,4.25127508]
[1729655092781,0.7747,2610.1,2609.8,3.44844]
[1729655097355,3.45837,2610.0,2609.7,0.80261508]
[1729655097655,0.7951,2609.9,2609.6,0.80261508]
[1729655097856,0.7951,2609.9,2609.5,6.34728999]
[1729655097857,0.7951,2609.9,2609.5,5.14336737]
[1729655098051,0.7951,2609.9,2609.6,1.69454737]
[1729655099756,0.7951,2609.9,2609.6,5.14331737]
[1729655100726,4.24351,2609.9,2609.6,1.69454737]
[1729655100948,4.24351,2609.9,2609.5,5.14346737]
[1729655101153,4.24351,2609.9,2609.6,1.69454737]
[1729655102297,0.7951,2609.9,2609.5,5.94608245]
[1729655102471,0.7951,2609.9,2609.6,1.69454737]
[1729655103354,0.7951,2609.9,2609.5,6.90171597]
[1729655103753,0.7951,2609.9,2609.6,1.69454737]
[1729655103950,4.24352,2609.9,2609.6,1.69454737]
[1729655104155,0.7951,2609.7,2609.5,0.80261508]
[1729655104380,0.7951,2609.7,2609.4,2.49716245]
[1729655105056,0.01,2609.6,2609.3,0.80261508]
[1729655105250,0.01,2609.6,2609.3,2.49716245]
[1729655105468,0.01,2609.4,2609.1,0.80261508]
[1729655105647,0.01,2609.4,2609.0,4.25211508]
[1729655105847,0.01,2609.4,2609.1,1.69454737]
[1729655106052,0.01,2609.4,2609.0,5.14404737]
[1729655106593,0.01,2609.4,2609.1,1.69454737]
[1729655106983,0.01,2609.4,2609.2,1.69454737]
[1729655107299,0.01,2609.4,2609.3,1.69454737]
[1729655113342,0.01,2609.4,2609.2,1.69454737]
[1729655113854,0.01,2609.4,2609.3,1.69454737]
[1729655114356,0.01,2609.4,2609.2,1.69454737]
[1729655115836,0.01,2609.4,2609.3,1.69454737]
[1729655116018,0.7951,2609.5,2609.3,5.14373737]
[1729655117754,0.7951,2609.5,2609.3,1.69454737]
[1729655118269,0.7951,2609.5,2609.3,5.14373737]
[1729655119460,0.7951,2609.5,2609.2,1.69454737]
[1729655120676,0.7951,2609.5,2609.2,5.14387737]
[1729655121061,0.01,2609.4,2609.1,3.44936]
[1729655121276,0.01,2609.4,2608.9,3.44964]
[1729655121277,0.01,2609.2,2608.9,3.44964]
[1729655121435,0.01,2609.2,2609.0,5.14413737]
[1729655121632,0.8225,2609.3,2609.1,1.69454737]
[1729655122080,0.8225,2609.3,2609.1,5.14399737]
[1729655123242,0.8225,2609.3,2609.1,1.69454737]
[1729655123438,0.8225,2609.3,2608.9,3.44964]
[1729655123677,0.01,2609.2,2608.8,1.69454737]
[1729655123832,0.01,2609.2,2608.8,5.14437737]
[1729655124035,0.01,2609.0,2608.7,0.80261508]
[1729655124238,3.45961,2609.0,2608.5,0.80261508]
[1729655124438,0.785,2608.9,2608.5,5.94740245]
[1729655124677,0.01,2608.7,2608.4,4.25286508]
[1729655124850,0.01,2608.7,2608.5,1.69454737]
[1729655125865,0.01,2608.7,2608.6,1.69454737]
[1729655126654,0.01,2608.7,2608.6,5.14466737]
[1729655128585,0.01,2608.7,2608.6,1.69454737]
[1729655136180,0.01,2608.7,2608.6,5.14466737]
[1729655136887,0.795,2608.9,2608.6,5.14466737]
[1729655137099,0.01,2608.7,2608.6,3.45012]
[1729655137253,0.01,2608.7,2608.6,5.14466737]
[1729655139988,0.795,2608.9,2608.6,5.14466737]
[1729655140190,0.795,2608.9,2608.7,1.69454737]
[1729655142364,0.795,2608.9,2608.8,1.69454737]
[1729655142890,0.795,2608.9,2608.7,5.14452737]
[1729655143594,0.795,2608.9,2608.7,1.69454737]
[1729655148188,0.01,2608.9,2608.8,1.69454737]
[1729655148402,0.8137,2609.1,2608.8,5.14440737]
[1729655148602,0.8137,2609.1,2608.9,1.69454737]
[1729655149767,0.8137,2609.1,2608.8,5.14438737]
[1729655150200,0.8137,2609.1,2608.8,1.69454737]
[1729655154582,0.8137,2609.1,2608.8,5.14437737]
[1729655154978,0.01,2609.1,2609.0,5.14413737]
[1729655155175,0.01,2609.4,2609.1,3.44942]
[1729655155403,0.01,2609.4,2609.2,1.69454737]
[1729655155576,0.01,2609.4,2609.3,1.69454737]
[1729655156416,0.01,2609.6,2609.3,1.69454737]
[1729655156713,0.01,2609.6,2609.3,2.52194737]
[1729655156913,0.01,2609.6,2609.4,1.69454737]
[1729655157209,4.26318,2609.7,2609.4,1.69454737]
[1729655157210,4.27318,2609.7,2609.4,1.69454737]
[1729655157797,0.01,2609.5,2609.4,1.69454737]
[1729655157998,0.8245,2609.7,2609.5,3.44893]
[1729655158204,0.8245,2609.7,2609.5,1.69454737]
[1729655158428,0.8245,2609.7,2609.4,2.63659411]
[1729655159337,0.8245,2609.7,2609.4,0.94204674]
[1729655160907,4.27323,2609.7,2609.2,5.14387737]
[1729655161537,4.27323,2609.7,2609.3,1.69454737]
[1729655161705,4.27323,2609.7,2609.2,5.14387737]
[1729655162049,4.27323,2609.7,2609.1,5.07938508]
[1729655162050,0.01,2609.5,2609.1,5.07938508]
[1729655162355,0.01,2609.2,2608.9,4.25225508]
[1729655162505,0.01,2609.2,2608.9,10.8017036]
[1729655162705,0.01,2609.2,2609.0,1.69454737]
[1729655163042,0.01,2609.2,2609.0,5.14413737]
[1729655163746,0.01,2609.2,2608.9,7.3521336]
[1729655164105,0.01,2609.2,2608.9,9.10724623]
[1729655164324,0.01,2609.2,2609.0,2.60527199]
[1729655165230,0.01,2609.2,2609.0,0.91072462]
[1729655166034,0.01,2609.2,2609.0,2.60527199]
[1729655167916,0.8245,2609.4,2609.1,1.69454737]
[1729655168324,0.8245,2609.4,2609.0,6.05477199]
[1729655168532,0.8245,2609.4,2609.1,1.69454737]
[1729655169755,0.8245,2609.4,2609.0,6.05477199]
[1729655169957,0.8145,2609.4,2609.1,1.69454737]
[1729655170308,0.8145,2609.4,2609.2,5.14379737]
[1729655170548,0.01,2609.5,2609.2,5.14379737]
[1729655170754,0.01,2609.5,2609.1,9.62399208]
[1729655171107,0.01,2609.5,2609.1,6.17461208]
[1729655173859,0.01,2609.5,2609.1,9.62399208]
[1729655174017,0.01,2609.5,2609.2,1.04073921]
[1729655175451,0.01,2609.5,2609.2,4.49004921]
[1729655176018,0.01,2609.5,2609.2,6.18459658]
[1729655177857,0.01,2609.7,2609.4,3.449]
[1729655178052,0.01,2609.7,2609.3,5.92712737]
[1729655178361,0.01,2609.7,2609.4,0.69678666]
[1729655185555,3.45867,2609.7,2609.4,0.69678666]
[1729655185769,3.45867,2609.7,2609.3,5.92708737]
[1729655186117,3.45867,2609.7,2609.3,4.23254]
[1729655186520,0.01,2609.7,2609.3,4.23254]
[1729655186717,3.45869,2609.7,2609.3,4.23254]
[1729655186968,0.01,2609.4,2609.1,0.80261508]
[1729655187128,0.01,2609.4,2609.1,1.08944179]
[1729655187822,0.01,2609.4,2609.0,4.25212508]
[1729655188230,0.01,2609.4,2609.1,5.14398737]
[1729655188560,0.01,2609.4,2609.1,1.69454737]
[1729655190825,0.01,2609.4,2609.0,5.94667245]
[1729655191549,0.01,2609.4,2609.0,9.39619245]
[1729655192259,0.01,2609.4,2609.0,5.94667245]
[1729655193441,0.01,2609.4,2609.1,0.80261508]
[1729655193633,0.01,2609.4,2609.0,5.94667245]
[1729655194127,0.01,2609.4,2609.1,0.80261508]
[1729655195926,0.01,2609.4,2609.1,5.94660245]
[1729655196272,0.01,2609.4,2609.2,3.44931]
[1729655196631,0.01,2609.4,2609.1,5.94659245]
[1729655197835,0.7832,2609.5,2609.2,3.4493]
[1729655198164,0.7832,2609.5,2609.2,4.25191508]
[1729655198333,0.01,2609.3,2609.2,0.80261508]
[1729655198700,0.7832,2609.5,2609.2,0.80261508]
[1729655198974,0.01,2609.3,2609.1,5.94655245]
[1729655199278,0.01,2609.3,2609.2,4.25194508]
[1729655199645,0.7832,2609.5,2609.2,4.25194508]
[1729655200365,0.01,2609.3,2609.2,4.25194508]
[1729655200560,0.01,2609.3,2609.2,4.53922733]
[1729655201150,0.01,2609.3,2609.2,4.25194508]
[1729655201361,0.01,2609.3,2609.2,4.53926752]
[1729655201538,0.7732,2609.5,2609.2,4.53926752]
[1729655201876,0.7832,2609.5,2609.2,4.25194508]
[1729655202173,0.01,2609.3,2609.2,4.25194508]
[1729655202394,0.01,2609.3,2609.2,4.53926627]
[1729655203660,0.01,2609.3,2609.2,1.08993627]
[1729655204091,0.01,2609.3,2609.2,0.80261508]
[1729655204390,0.01,2609.3,2609.2,1.08994057]
[1729655204749,0.01,2609.3,2609.2,1.08994294]
[1729655206093,0.01,2609.3,2609.2,4.53927294]
[1729655206307,0.7832,2609.5,2609.3,3.4491]
[1729655206608,0.8154,2609.7,2609.4,3.44906]
[1729655206811,0.8154,2609.7,2609.5,3.44891]
[1729655207808,0.8154,2609.7,2609.5,5.14341737]
[1729655207980,0.01,2609.9,2609.8,3.44854]
[1729655208180,0.01,2609.9,2609.8,5.14308737]
[1729655208589,0.01,2609.9,2609.8,3.44854]
[1729655209275,0.01,2609.9,2609.8,5.14308737]
[1729655209779,0.01,2609.9,2609.8,3.44854]
[1729655209973,0.01,2609.9,2609.7,5.94761505]
[1729655210170,0.01,2609.9,2609.7,7.10160627]
[1729655210397,0.01,2609.9,2609.8,3.44854]
[1729655210805,0.01,2609.9,2609.7,6.29710859]
[1729655211208,0.01,2609.9,2609.7,4.60256122]
[1729655211577,0.01,2609.9,2609.8,3.44854]
[1729655211803,0.01,2609.9,2609.8,4.50355363]
[1729655216723,0.01,2609.9,2609.8,1.05501363]
[1729655217666,0.01,2610.6,2610.2,3.44797]
[1729655217874,0.01,2610.6,2610.3,3.44787]
[1729655218477,0.01,2610.6,2610.2,3.44799]
[1729655218673,0.7941,2610.5,2610.2,3.44799]
[1729655220778,0.7941,2610.5,2610.0,2.49773021]
[1729655220779,1.69454737,2610.3,2610.0,0.80318284]
[1729655220999,0.7941,2610.1,2609.9,3.44831]
[1729655222054,0.7941,2610.1,2609.9,4.38777202]
[1729655222374,0.7941,2610.1,2610.0,3.44827]
[1729655222972,0.7941,2610.1,2609.9,4.38777202]
[1729655223794,0.7941,2610.1,2609.7,3.44857]
[1729655224086,0.01,2610.0,2609.7,3.44857]
[1729655225040,0.01,2610.0,2609.5,5.19173734]
[1729655225041,5.15288737,2610.0,2609.5,5.19173734]
[1729655225367,5.15288737,2610.0,2609.5,4.3885545]
[1729655225686,3.45834,2610.0,2609.5,4.3885545]
[1729655226244,3.45834,2610.0,2609.5,7.8374245]
[1729655226584,5.15288737,2610.0,2609.5,4.3885545]
[1729655226882,0.7941,2609.9,2609.5,4.3885545]
[1729655227258,0.7941,2609.9,2609.3,4.25229284]
[1729655227259,0.01,2609.6,2609.3,4.25229284]
[1729655227444,0.01,2609.6,2609.3,1.69454737]
[1729655227646,0.01,2609.6,2609.4,3.44903]
[1729655227857,0.01,2609.6,2609.4,1.69454737]
[1729655228183,0.01,2609.6,2609.5,3.44893]
[1729655228480,0.01,2609.6,2609.4,5.14359737]
[1729655228722,0.01,2609.6,2609.4,6.16503039]
[1729655229043,0.01,2609.6,2609.4,2.71598039]
[1729655229283,0.01,2609.6,2609.4,6.16494039]
[1729655231286,0.01,2609.6,2609.5,1.69454737]
[1729655231577,0.01,2609.6,2609.4,6.16494039]
[1729655231779,0.01,2609.6,2609.5,1.69454737]
[1729655235300,0.01,2609.6,2609.4,1.69454737]
[1729655235485,0.7663,2609.6,2609.3,5.14373737]
[1729655235786,0.7663,2609.6,2609.3,5.87684474]
[1729655236411,0.7663,2609.6,2609.4,1.69454737]
[1729655237676,0.7663,2609.6,2609.3,2.42765474]
[1729655237903,0.7663,2609.6,2609.2,5.94706021]
[1729655238101,0.7663,2609.6,2609.2,5.14387737]
[1729655238320,0.7663,2609.6,2609.3,1.69454737]
[1729655241219,0.01,2609.4,2609.2,1.69454737]
[1729655243182,0.01,2609.4,2609.3,1.69454737]
[1729655248738,0.01,2609.4,2609.3,5.14374737]
[1729655249727,0.01,2609.4,2609.3,1.69454737]
[1729655250130,0.01,2609.4,2609.3,5.14374737]
[1729655250436,0.01,2609.7,2609.4,3.449]
[1729655250739,0.01,2609.7,2609.5,1.69454737]
[1729655251703,0.01,2609.7,2609.4,5.14354737]
[1729655252038,0.01,2609.7,2609.4,6.33817052]
[1729655254602,0.01,2609.7,2609.5,1.69454737]
[1729655259690,0.01,2609.7,2609.5,5.14345737]
[1729655259893,0.01,2609.9,2609.6,3.4488]
[1729655260191,0.01,2609.9,2609.7,1.69454737]
[1729655264007,0.01,2609.9,2609.6,1.69454737]
[1729655266746,0.01,2609.9,2609.7,1.69454737]
[1729655267114,0.01,2609.9,2609.6,3.67723297]
[1729655267419,0.01,2609.9,2609.7,1.69454737]
[1729655267942,0.01,2609.9,2609.6,7.12601297]
[1729655268306,0.01,2609.9,2609.7,1.69454737]
[1729655268508,0.01,2609.9,2609.8,0.7126013]
[1729655268919,0.01,2609.9,2609.6,3.67723297]
[1729655269345,0.01,2609.9,2609.6,1.9826856]
[1729655269644,0.01,2609.9,2609.7,0.80318284]
[1729655270626,3.45841,2609.9,2609.7,0.80318284]
[1729655271250,0.01,2609.9,2609.7,0.80318284]
[1729655271451,0.01,2609.9,2609.7,1.63627656]
[1729655271616,0.01,2609.9,2609.7,3.33082393]
[1729655274587,0.01,2609.9,2609.7,1.63627656]
[1729655274983,0.01,2609.9,2609.7,3.33082393]
[1729655275860,0.01,2609.9,2609.8,1.69454737]
[1729655276183,0.01,2609.9,2609.7,3.33082393]
[1729655276384,0.01,2609.9,2609.8,1.69454737]
[1729655276547,0.01,2609.9,2609.7,3.33082393]
[1729655282173,0.01,2609.9,2609.7,2.49773021]
[1729655289329,0.01,2609.9,2609.7,0.80318284]
[1729655289717,4.28124,2609.8,2609.7,0.80318284]
[1729655289919,4.29137,2609.7,2609.5,0.80318284]
[1729655290118,4.2815,2609.6,2609.4,0.80318284]
[1729655290339,4.2815,2609.6,2609.3,0.80318284]